fUSD/lending_fUSD_20250511
["ID","MTS","AMOUNT","RATE_DAILY","PERIOD"]
[360712789,1746947435953,-400.0,0.00019821,2]
[360712790,1746947435963,-400.0,0.00019821,2]
[360712791,1746947435973,-400.0,0.00019821,2]
[360712792,1746947435983,-400.0,0.00019821,2]
[360712793,1746947435993,-400.0,0.00019821,2]
[360712794,1746947436002,-400.0,0.00019821,2]
[360712795,1746947436012,-400.0,0.00019821,2]
[360712796,1746947436021,-400.0,0.00019821,2]
[360712797,1746947436031,-400.0,0.00019821,2]
[360712798,1746947436040,-500.0,0.00019821,2]
[360712799,1746947436050,-400.0,0.00019821,2]
[360712800,1746947436060,-2927.61,0.00019821,2]
[360712801,1746947436069,-400.0,0.00019821,2]
[360712802,1746947436079,-400.0,0.00019821,2]
[360712803,1746947436089,-400.0,0.00019821,2]
[360712804,1746947436099,-400.0,0.00019821,2]
[360712805,1746947436112,-400.0,0.00019821,2]
[360712806,1746947436122,-400.0,0.00019821,2]
[360712807,1746947436132,-400.0,0.00019821,2]
[360712808,1746947436142,-400.0,0.00019821,2]
[360712809,1746947436318,-400.0,0.00019821,2]
[360712810,1746947436329,-400.0,0.00019821,2]
[360712811,1746947436339,-400.0,0.00019821,2]
[360712812,1746947436350,-400.0,0.00019821,2]
[360712813,1746947436362,-400.0,0.00019821,2]
[360712814,1746947436372,-400.0,0.00019821,2]
[360712815,1746947436382,-400.0,0.00019821,2]
[360712816,1746947436391,-418.20047546,0.00019821,2]
[360712817,1746947436401,-731.63,0.00019821,2]
[360712818,1746947436410,-493.64,0.00019821,2]
[360712819,1746947436420,-440.14,0.00019821,2]
[360712820,1746947436430,-400.0,0.00019821,2]
[360712821,1746947436440,-480.24725117,0.00019821,2]
[360712822,1746947436449,-400.0,0.00019821,2]
[360712823,1746947436462,-400.0,0.00019821,2]
[360712824,1746947436471,-400.0,0.00019821,2]
[360712825,1746947436481,-400.0,0.00019821,2]
[360712826,1746947436490,-450.0,0.00019821,2]
[360712827,1746947436500,-400.0,0.00019821,2]
[360712828,1746947436510,-400.0,0.00019821,2]
[360712829,1746947436520,-400.0,0.00019821,2]
[360712830,1746947436529,-400.0,0.00019821,2]
[360712831,1746947436542,-515.17,0.00019821,2]
[360712832,1746947436552,-400.0,0.00019821,2]
[360712833,1746947436561,-400.0,0.00019821,2]
[360712834,1746947436570,-7263.74,0.00019821,2]
[360712835,1746947436580,-500.0,0.00019821,2]
[360712836,1746947436589,-450.0,0.00019821,2]
[360712837,1746947436599,-400.0,0.00019821,2]
[360712838,1746947436610,-400.0,0.00019821,2]
[360712839,1746947436620,-400.0,0.00019821,2]
[360712840,1746947436630,-400.0,0.00019821,2]
[360712841,1746947436641,-400.0,0.00019821,2]
[360712842,1746947436650,-400.0,0.00019821,2]
[360712843,1746947436660,-400.0,0.00019821,2]
[360712844,1746947436669,-400.0,0.00019821,2]
[360712845,1746947436679,-400.0,0.00019821,2]
[360712846,1746947436688,-400.0,0.00019821,2]
[360712847,1746947436698,-727.95,0.00019821,2]
[360712848,1746947436707,-400.0,0.00019821,2]
[360712849,1746947436717,-162.22887589,0.00019833,2]
[360712850,1746947436727,-500.0,0.00019839,2]
[360712851,1746947436736,-200.0,0.00019839,2]
[360712852,1746947436746,-408.03778277,0.00019847,2]
[360712853,1746947436755,-400.0,0.00019847,2]
[360712854,1746947436764,-400.0,0.00019847,2]
[360712855,1746947436774,-400.0,0.00019847,2]
[360712856,1746947436783,-400.0,0.00019847,2]
[360712857,1746947436793,-400.0,0.00019847,2]
[360712858,1746947436802,-222.81407518,0.00019847,2]
[360712859,1746947436812,-400.0,0.00019847,2]
[360712860,1746947436821,-400.0,0.00019847,2]
[360712861,1746947436831,-400.0,0.00019847,2]
[360712862,1746947436840,-400.0,0.00019847,2]
[360712863,1746947436849,-462.47,0.00019847,2]
[360712864,1746947436860,-400.0,0.00019847,2]
[360712865,1746947436870,-287.60816181,0.00019847,2]
[360712866,1746947436879,-400.0,0.00019847,2]
[360712867,1746947436888,-400.0,0.00019847,2]
[360712868,1746947436897,-467.7,0.00019847,2]
[360712869,1746947436907,-243.318,0.00019858,2]
[360712870,1746947436916,-2172.788,0.00019862,2]
[360712871,1746947436926,-1075.0,0.00019866,2]
[360712872,1746947436935,-162.22887589,0.00019867,2]
[360712873,1746947436945,-500.0,0.00019873,2]
[360712874,1746947436955,-500.0,0.00019873,2]
[360712875,1746947436964,-501.88797801,0.00019873,2]
[360712876,1746947436974,-500.0,0.00019873,2]
[360712877,1746947436983,-500.0,0.00019873,2]
[360712878,1746947436992,-12500.0,0.00019891,2]
[360712879,1746947437002,-400.0,0.00019895,2]
[360712880,1746947437012,-400.0,0.00019895,2]
[360712881,1746947437021,-400.0,0.00019895,2]
[360712882,1746947437031,-400.0,0.00019895,2]
[360712883,1746947437041,-645.57,0.00019895,2]
[360712884,1746947437051,-400.0,0.00019895,2]
[360712885,1746947437060,-400.0,0.00019895,2]
[360712886,1746947437070,-400.0,0.00019895,2]
[360712887,1746947437080,-356.5,0.00019895,2]
[360712888,1746947437090,-400.0,0.00019895,2]
[360712889,1746947437099,-400.0,0.00019895,2]
[360712890,1746947437110,-400.0,0.00019895,2]
[360712891,1746947437120,-462.47,0.00019895,2]
[360712892,1746947437131,-400.0,0.00019895,2]
[360712893,1746947437140,-400.0,0.00019895,2]
[360712894,1746947437150,-400.0,0.00019895,2]
[360712895,1746947437160,-7021.0985,0.00019897,2]
[360712896,1746947437170,-400.0,0.00019898,2]
[360712897,1746947437179,-180.45,0.00019898,2]
[360712898,1746947437189,-400.0,0.00019898,2]
[360712899,1746947437199,-645.57,0.00019898,2]
[360712900,1746947437210,-400.0,0.00019899,2]
[360712901,1746947437220,-400.0,0.00019899,2]
[360712902,1746947437230,-400.0,0.00019899,2]
[360712903,1746947437240,-400.0,0.00019899,2]
[360712904,1746947437250,-400.0,0.00019899,2]
[360712905,1746947437260,-462.47,0.00019899,2]
[360712906,1746947437269,-400.0,0.00019899,2]
[360712907,1746947437279,-400.0,0.00019899,2]
[360712908,1746947437290,-400.0,0.00019899,2]
[360712909,1746947437301,-254.3668686,0.00019899,2]
[360712910,1746947437311,-668.17,0.00019899,2]
[360712911,1746947437321,-400.0,0.00019899,2]
[360712912,1746947437331,-400.0,0.00019899,2]
[360712913,1746947437341,-400.0,0.00019899,2]
[360712914,1746947437352,-400.0,0.00019899,2]
[360712915,1746947437363,-464.16,0.00019899,2]
[360712916,1746947437373,-400.0,0.00019899,2]
[360712917,1746947437383,-400.0,0.00019899,2]
[360712918,1746947437394,-400.0,0.00019899,2]
[360712919,1746947437404,-400.0,0.00019899,2]
[360712920,1746947437414,-400.0,0.00019899,2]
[360712921,1746947437423,-400.0,0.00019899,2]
[360712922,1746947437433,-400.0,0.00019899,2]
[360712923,1746947437443,-400.0,0.00019899,2]
[360712924,1746947437454,-153.2280204,0.00019899,2]
[360712925,1746947437468,-400.0,0.00019899,2]
[360712926,1746947437478,-400.0,0.00019899,2]
[360712927,1746947437488,-400.0,0.00019899,2]
[360712928,1746947437499,-400.0,0.00019899,2]
[360712929,1746947437509,-3015.99,0.000199,2]
[360712930,1746947437519,-583.0,0.000199,2]
[360712933,1746947437530,-12500.0,0.000199,2]
[360712934,1746947437541,-5800.0,0.000199,2]
[360712935,1746947437551,-162.22887589,0.000199,2]
[360712936,1746947437562,-236.0,0.000199,2]
[360712937,1746947437572,-374.0,0.000199,2]
[360712938,1746947437582,-765.0,0.000199,2]
[360712939,1746947437592,-8370.23411372,0.000199,2]
[360712944,1746947438252,-432.93220727,0.000178,2]
[360712948,1746947438279,-831.50231973,0.000178,2]
[360712950,1746947438291,-357.24768027,0.00019809,2]
[360712957,1746947438352,-42.75231973,0.00019809,2]
[360712959,1746947438368,-450.0,0.00019809,2]
[360712960,1746947438381,-400.0,0.00019809,2]
[360712961,1746947438394,-400.0,0.00019809,2]
[360712962,1746947438411,-5974.99812033,0.000199,2]
[360712963,1746947438421,-1130.38691553,0.000199,2]
[360712964,1746947438432,-170.16718998,0.000199,2]
[360712965,1746947438444,-169.72256866,0.000199,2]
[360712966,1746947438457,-601.35184364,0.000199,3]
[360712967,1746947438470,-1228.28066469,0.00019918,2]
[360712982,1746947445449,-955.65034877,0.00019799,2]
[360712984,1746947445490,-1220.585688,0.00019799,2]
[360713022,1746947446291,-2821.07133043,0.00019799,2]
[360713023,1746947446302,-400.0,0.00019809,2]
[360713024,1746947446313,-6265.55,0.00019809,2]
[360713025,1746947446324,-400.0,0.00019809,2]
[360713026,1746947446335,-400.0,0.0001981,2]
[360713027,1746947446345,-400.0,0.00019899,2]
[360713028,1746947446356,-6265.55,0.00019899,2]
[360713029,1746947446367,-451.71933531,0.00019918,2]
[360713030,1746947446379,-8997.80920131,0.00019951,2]
[360713031,1746947446390,-186.0,0.00019962,2]
[360713032,1746947446403,-505.83113436,0.00019973,2]
[360713033,1746947446414,-503.39053001,0.00019973,2]
[360713034,1746947446425,-500.0,0.00019973,2]
[360713035,1746947446436,-500.0,0.00019973,2]
[360713036,1746947446448,-501.14459258,0.00019973,2]
[360713037,1746947446462,-501.59102885,0.00019973,2]
[360713038,1746947446473,-500.0,0.00019973,2]
[360713039,1746947446485,-502.14334775,0.00019973,2]
[360713040,1746947446496,-500.0,0.00019973,2]
[360713041,1746947446507,-500.0,0.00019973,2]
[360713042,1746947446518,-500.0,0.00019973,2]
[360713043,1746947446530,-500.71077903,0.00019973,2]
[360713044,1746947446542,-500.0,0.00019973,2]
[360713045,1746947446551,-500.0,0.00019973,2]
[360713046,1746947446562,-400.0,0.00019973,2]
[360713047,1746947446571,-400.0,0.00019973,2]
[360713048,1746947446580,-400.0,0.00019973,2]
[360713049,1746947446590,-400.0,0.00019973,2]
[360713050,1746947446599,-400.0,0.00019973,2]
[360713051,1746947446609,-400.0,0.00019973,2]
[360713052,1746947446620,-549.29,0.00019973,2]
[360713053,1746947446629,-400.0,0.00019973,2]
[360713054,1746947446639,-400.0,0.00019973,2]
[360713055,1746947446648,-400.0,0.00019973,2]
[360713056,1746947446658,-400.0,0.00019973,2]
[360713057,1746947446668,-300.0,0.00019974,2]
[360713058,1746947446678,-150.0,0.00019979,2]
[360713059,1746947446688,-150.4642212,0.00019986,2]
[360713060,1746947446698,-150.4642212,0.00019986,2]
[360713061,1746947446707,-150.4642212,0.00019986,2]
[360713062,1746947446716,-150.4642212,0.00019986,2]
[360713063,1746947446727,-150.4642212,0.00019986,2]
[360713064,1746947446737,-400.0,0.0001999,2]
[360713065,1746947446746,-400.0,0.0001999,2]
[360713066,1746947446755,-400.0,0.0001999,2]
[360713067,1746947446764,-400.0,0.0001999,2]
[360713068,1746947446773,-400.0,0.0001999,2]
[360713069,1746947446783,-400.0,0.0001999,2]
[360713070,1746947446792,-400.0,0.0001999,2]
[360713071,1746947446802,-400.0,0.0001999,2]
[360713072,1746947446812,-400.0,0.0001999,2]
[360713073,1746947446821,-400.0,0.0001999,2]
[360713074,1746947446830,-269.23550473,0.0001999,2]
[360713075,1746947446841,-400.0,0.0001999,2]
[360713076,1746947446851,-322.2,0.0001999,2]
[360713077,1746947446863,-400.0,0.0001999,2]
[360713078,1746947446873,-150.0,0.00019991,2]
[360713079,1746947447191,-329.22863017,0.00019991,2]
[360713080,1746947447212,-400.0,0.00019991,2]
[360713081,1746947447226,-467.79,0.00019991,2]
[360713082,1746947447236,-400.0,0.00019991,2]
[360713083,1746947447245,-400.0,0.00019991,2]
[360713084,1746947447254,-400.0,0.00019991,2]
[360713085,1746947447263,-400.0,0.00019991,2]
[360713086,1746947447273,-400.0,0.00019991,2]
[360713087,1746947447283,-400.0,0.00019991,2]
[360713088,1746947447293,-400.0,0.00019991,2]
[360713089,1746947447302,-400.0,0.00019991,2]
[360713090,1746947447312,-400.0,0.00019991,2]
[360713091,1746947447322,-400.0,0.00019991,2]
[360713092,1746947447332,-400.0,0.00019991,2]
[360713093,1746947447342,-400.0,0.00019991,2]
[360713094,1746947447352,-400.0,0.00019991,2]
[360713095,1746947447365,-400.0,0.00019991,2]
[360713096,1746947447374,-210.82,0.00019991,2]
[360713097,1746947447385,-451.18988244,0.00019991,2]
[360713098,1746947447395,-400.0,0.00019991,2]
[360713099,1746947447406,-400.0,0.00019991,2]
[360713100,1746947447416,-536.11,0.00019991,2]
[360713101,1746947447426,-400.0,0.00019991,2]
[360713102,1746947447436,-400.0,0.00019991,2]
[360713103,1746947447446,-400.0,0.00019991,2]
[360713104,1746947447455,-412.39,0.00019991,2]
[360713105,1746947447470,-400.0,0.00019991,2]
[360713106,1746947447480,-400.0,0.00019991,2]
[360713107,1746947447489,-400.0,0.00019991,2]
[360713108,1746947447499,-417.25,0.00019991,2]
[360713109,1746947447510,-400.0,0.00019991,2]
[360713110,1746947447520,-517.14,0.00019991,2]
[360713111,1746947447544,-400.0,0.00019991,2]
[360713112,1746947447554,-400.0,0.00019991,2]
[360713113,1746947447564,-432.62,0.00019991,2]
[360713114,1746947447573,-471.67,0.00019991,2]
[360713115,1746947447582,-400.0,0.00019991,2]
[360713116,1746947447591,-400.0,0.00019991,2]
[360713117,1746947447601,-465.61,0.00019991,2]
[360713118,1746947447610,-400.0,0.00019991,2]
[360713119,1746947447622,-400.0,0.00019991,2]
[360713120,1746947447632,-400.0,0.00019991,2]
[360713121,1746947447642,-400.0,0.00019991,2]
[360713122,1746947447652,-400.0,0.00019991,2]
[360713123,1746947447661,-549.7520403,0.00019991,2]
[360713124,1746947447671,-400.0,0.00019991,2]
[360713125,1746947447680,-400.0,0.00019991,2]
[360713126,1746947447690,-400.0,0.00019991,2]
[360713127,1746947447700,-400.0,0.00019991,2]
[360713128,1746947447709,-400.0,0.00019991,2]
[360713129,1746947447928,-400.0,0.00019991,2]
[360713130,1746947447939,-161.23,0.00019991,2]
[360713131,1746947447950,-500.0,0.00019991,2]
[360713132,1746947447960,-533.38874004,0.00019991,2]
[360713133,1746947447969,-471.86,0.00019991,2]
[360713134,1746947447979,-418.14036341,0.00019991,2]
[360713135,1746947447989,-400.0,0.00019991,2]
[360713136,1746947447998,-400.0,0.00019991,2]
[360713137,1746947448008,-400.0,0.00019991,2]
[360713138,1746947448017,-400.0,0.00019991,2]
[360713139,1746947448026,-400.0,0.00019991,2]
[360713140,1746947448035,-400.0,0.00019991,2]
[360713141,1746947448045,-400.0,0.00019991,2]
[360713142,1746947448054,-400.0,0.00019991,2]
[360713143,1746947448064,-400.0,0.00019991,2]
[360713144,1746947448073,-544.89,0.00019991,2]
[360713145,1746947448083,-185.68,0.00019991,2]
[360713146,1746947448092,-400.0,0.00019991,2]
[360713147,1746947448102,-731.63,0.00019991,2]
[360713148,1746947448111,-275.14310282,0.00019991,2]
[360713149,1746947448122,-400.0,0.00019991,2]
[360713150,1746947448132,-493.64,0.00019991,2]
[360713151,1746947448142,-400.0,0.00019991,2]
[360713152,1746947448151,-440.14,0.00019991,2]
[360713153,1746947448161,-400.0,0.00019991,2]
[360713154,1746947448170,-400.0,0.00019991,2]
[360713155,1746947448180,-400.0,0.00019991,2]
[360713156,1746947448190,-269.13676411,0.00019991,2]
[360713157,1746947448200,-400.0,0.00019991,2]
[360713158,1746947448209,-400.0,0.00019991,2]
[360713159,1746947448219,-400.0,0.00019991,2]
[360713160,1746947448229,-471.3090587,0.00019991,2]
[360713161,1746947448239,-515.17,0.00019991,2]
[360713162,1746947448248,-7263.74,0.00019991,2]
[360713163,1746947448257,-391.91,0.00019991,2]
[360713164,1746947448267,-400.0,0.00019991,2]
[360713165,1746947448276,-400.0,0.00019991,2]
[360713166,1746947448286,-400.0,0.00019991,2]
[360713167,1746947448295,-400.0,0.00019991,2]
[360713168,1746947448305,-400.0,0.00019991,2]
[360713169,1746947448314,-727.95,0.00019991,2]
[360713170,1746947448324,-400.0,0.00019991,2]
[360713171,1746947448333,-400.0,0.00019991,2]
[360713172,1746947448342,-400.0,0.00019991,2]
[360713173,1746947448351,-371.19,0.00019991,2]
[360713174,1746947448361,-428.61463258,0.00019991,2]
[360713175,1746947448372,-400.0,0.00019991,2]
[360713176,1746947448381,-400.0,0.00019991,2]
[360713177,1746947448391,-400.0,0.00019992,2]
[360713178,1746947448400,-400.0,0.00019992,2]
[360713179,1746947448410,-645.57,0.00019992,2]
[360713180,1746947448420,-400.0,0.00019992,2]
[360713181,1746947448429,-400.0,0.00019992,2]
[360713182,1746947448439,-400.0,0.00019992,2]
[360713183,1746947448448,-400.0,0.00019992,2]
[360713184,1746947448459,-400.0,0.00019992,2]
[360713185,1746947448470,-400.0,0.00019992,2]
[360713186,1746947448479,-400.0,0.00019992,2]
[360713187,1746947448489,-400.0,0.00019992,2]
[360713188,1746947448499,-400.0,0.00019992,2]
[360713189,1746947448510,-400.0,0.00019992,2]
[360713190,1746947448520,-392.4,0.00019992,2]
[360713191,1746947448530,-400.0,0.00019992,2]
[360713192,1746947448541,-400.0,0.00019992,2]
[360713193,1746947448552,-400.0,0.00019992,2]
[360713194,1746947448561,-400.0,0.00019992,2]
[360713195,1746947448570,-462.47,0.00019992,2]
[360713196,1746947448579,-462.47,0.00019992,2]
[360713197,1746947448589,-462.47,0.00019992,2]
[360713198,1746947448598,-462.47,0.00019992,2]
[360713199,1746947448608,-400.0,0.00019992,2]
[360713200,1746947448619,-400.0,0.00019992,2]
[360713201,1746947448629,-400.0,0.00019992,2]
[360713202,1746947448639,-400.0,0.00019992,2]
[360713203,1746947448650,-400.0,0.00019992,2]
[360713204,1746947448660,-400.0,0.00019992,2]
[360713205,1746947448669,-400.0,0.00019992,2]
[360713206,1746947448679,-400.0,0.00019992,2]
[360713207,1746947448688,-400.0,0.00019992,2]
[360713208,1746947448697,-400.0,0.00019992,2]
[360713209,1746947448706,-400.0,0.00019992,2]
[360713210,1746947448716,-400.0,0.00019992,2]
[360713211,1746947448726,-479.16,0.00019993,2]
[360713212,1746947448735,-400.0,0.00019993,2]
[360713213,1746947448745,-400.0,0.00019993,2]
[360713214,1746947448755,-400.0,0.00019993,2]
[360713215,1746947448765,-400.0,0.00019993,2]
[360713216,1746947448774,-645.57,0.00019993,2]
[360713217,1746947448784,-645.57,0.00019993,2]
[360713218,1746947448794,-645.57,0.00019993,2]
[360713219,1746947448803,-645.57,0.00019993,2]
[360713220,1746947448813,-400.0,0.00019993,2]
[360713221,1746947448823,-400.0,0.00019993,2]
[360713222,1746947448833,-400.0,0.00019993,2]
[360713223,1746947448842,-462.47,0.00019993,2]
[360713224,1746947448852,-400.0,0.00019993,2]
[360713225,1746947448861,-400.0,0.00019993,2]
[360713226,1746947448873,-400.0,0.00019993,2]
[360713227,1746947448882,-150.4642212,0.00019993,2]
[360713228,1746947448892,-400.0,0.00019995,2]
[360713229,1746947448902,-645.57,0.00019995,2]
[360713230,1746947448912,-174073.0097126,0.00019995,2]
[360713231,1746947448923,-466.38441415,0.00019996,2]
[360713232,1746947448933,-400.0,0.00019996,2]
[360713233,1746947448942,-400.21,0.00019996,2]
[360713234,1746947448952,-198.85,0.00019996,2]
[360713235,1746947448961,-400.0,0.00019996,2]
[360713236,1746947448971,-400.0,0.00019996,2]
[360713237,1746947448981,-462.47,0.00019996,2]
[360713238,1746947448991,-462.47,0.00019996,2]
[360713239,1746947449001,-398.65,0.00019996,2]
[360713240,1746947449010,-400.0,0.00019996,2]
[360713241,1746947449021,-400.0,0.00019996,2]
[360713242,1746947449030,-400.0,0.00019996,2]
[360713243,1746947449040,-400.0,0.00019996,2]
[360713244,1746947449051,-500.0,0.00019996,2]
[360713245,1746947449061,-500.0,0.00019996,2]
[360713246,1746947449071,-500.0,0.00019996,2]
[360713247,1746947449081,-500.0,0.00019996,2]
[360713248,1746947449091,-500.0,0.00019996,2]
[360713249,1746947449101,-400.0,0.00019997,2]
[360713250,1746947449111,-273.11889164,0.00019997,2]
[360713251,1746947449124,-645.57,0.00019997,2]
[360713252,1746947449134,-645.57,0.00019997,2]
[360713253,1746947449144,-400.0,0.00019997,2]
[360713254,1746947449153,-400.0,0.00019997,2]
[360713255,1746947449164,-462.47,0.00019997,2]
[360713256,1746947449174,-400.0,0.00019997,2]
[360713257,1746947449184,-400.0,0.00019997,2]
[360713258,1746947449193,-400.0,0.00019997,2]
[360713259,1746947449203,-400.0,0.00019997,2]
[360713260,1746947449212,-400.0,0.00019997,2]
[360713261,1746947449222,-400.0,0.00019997,2]
[360713262,1746947449232,-400.0,0.00019997,2]
[360713263,1746947449242,-400.0,0.00019997,2]
[360713264,1746947449251,-400.0,0.00019997,2]
[360713265,1746947449262,-400.0,0.00019997,2]
[360713266,1746947449272,-400.0,0.00019997,2]
[360713267,1746947449281,-400.0,0.00019997,2]
[360713268,1746947449291,-400.0,0.00019997,2]
[360713269,1746947449302,-198.8,0.00019997,2]
[360713270,1746947449312,-309.91,0.00019997,2]
[360713271,1746947449322,-400.0,0.00019997,2]
[360713272,1746947449332,-538.0,0.00019997,2]
[360713273,1746947449342,-400.0,0.00019997,2]
[360713274,1746947449351,-378.43,0.00019997,2]
[360713275,1746947449360,-400.0,0.00019997,2]
[360713276,1746947449372,-400.0,0.00019997,2]
[360713277,1746947449383,-275.66,0.00019997,2]
[360713278,1746947449392,-240.03841424,0.00019997,2]
[360713279,1746947449402,-400.0,0.00019997,2]
[360713280,1746947449411,-400.0,0.00019997,2]
[360713281,1746947449421,-541.58140627,0.00019997,2]
[360713282,1746947449430,-400.0,0.00019997,2]
[360713283,1746947449439,-400.0,0.00019997,2]
[360713284,1746947449448,-400.0,0.00019997,2]
[360713285,1746947449458,-400.0,0.00019997,2]
[360713286,1746947449470,-486.7222198,0.00019997,2]
[360713287,1746947449480,-450.18,0.00019997,2]
[360713288,1746947449490,-400.0,0.00019997,2]
[360713289,1746947449500,-731.63,0.00019997,2]
[360713290,1746947449510,-400.0,0.00019997,2]
[360713291,1746947449520,-493.64,0.00019997,2]
[360713292,1746947449530,-440.14,0.00019997,2]
[360713293,1746947449541,-246.97,0.00019997,2]
[360713294,1746947449552,-400.0,0.00019997,2]
[360713295,1746947449561,-464.16,0.00019997,2]
[360713296,1746947449571,-333.80949439,0.00019997,2]
[360713297,1746947449580,-400.0,0.00019997,2]
[360713298,1746947449590,-400.0,0.00019997,2]
[360713299,1746947449599,-400.0,0.00019997,2]
[360713300,1746947449608,-515.17,0.00019997,2]
[360713301,1746947449619,-400.0,0.00019997,2]
[360713302,1746947449629,-7263.74,0.00019997,2]
[360713303,1746947449638,-400.0,0.00019997,2]
[360713304,1746947449648,-400.0,0.00019997,2]
[360713305,1746947449658,-400.0,0.00019997,2]
[360713306,1746947449667,-400.0,0.00019997,2]
[360713307,1746947449677,-150.36440704,0.00019997,2]
[360713308,1746947449687,-400.0,0.00019997,2]
[360713309,1746947449696,-457.03943046,0.00019997,2]
[360713310,1746947449705,-400.0,0.00019997,2]
[360713311,1746947449715,-400.0,0.00019997,2]
[360713312,1746947449725,-727.95,0.00019997,2]
[360713313,1746947449735,-400.0,0.00019997,2]
[360713314,1746947449744,-400.0,0.00019997,2]
[360713315,1746947449754,-400.0,0.00019997,2]
[360713316,1746947449763,-400.0,0.00019997,2]
[360713317,1746947449773,-400.0,0.00019997,2]
[360713318,1746947449782,-400.0,0.00019997,2]
[360713319,1746947449792,-400.0,0.00019997,2]
[360713320,1746947449802,-400.0,0.00019997,2]
[360713321,1746947449811,-400.0,0.00019997,2]
[360713322,1746947449821,-6265.55,0.00019997,2]
[360713323,1746947449830,-400.0,0.00019997,2]
[360713324,1746947449840,-150.0,0.00019998,2]
[360713325,1746947449850,-645.57,0.00019998,2]
[360713326,1746947449859,-645.57,0.00019998,2]
[360713327,1746947449870,-645.57,0.00019998,2]
[360713328,1746947449880,-400.0,0.00019998,2]
[360713329,1746947449889,-400.0,0.00019998,2]
[360713330,1746947449899,-400.0,0.00019998,2]
[360713331,1746947449908,-462.47,0.00019998,2]
[360713332,1746947449918,-462.47,0.00019998,2]
[360713333,1746947449927,-462.47,0.00019998,2]
[360713334,1746947449937,-400.0,0.00019998,2]
[360713335,1746947449946,-400.0,0.00019998,2]
[360713336,1746947449956,-400.0,0.00019998,2]
[360713337,1746947449965,-509.88,0.00019998,2]
[360713338,1746947449974,-400.0,0.00019998,2]
[360713339,1746947449984,-400.0,0.00019998,2]
[360713340,1746947449993,-400.0,0.00019998,2]
[360713341,1746947450003,-400.0,0.00019998,2]
[360713342,1746947450012,-492.72,0.00019998,2]
[360713343,1746947450021,-400.0,0.00019998,2]
[360713344,1746947450031,-400.0,0.00019998,2]
[360713345,1746947450040,-400.0,0.00019998,2]
[360713346,1746947450050,-400.0,0.00019998,2]
[360713347,1746947450060,-400.0,0.00019998,2]
[360713348,1746947450069,-400.0,0.00019998,2]
[360713349,1746947450080,-400.0,0.00019998,2]
[360713350,1746947450089,-507.68,0.00019998,2]
[360713351,1746947450099,-319.36844729,0.00019998,2]
[360713352,1746947450108,-400.0,0.00019998,2]
[360713353,1746947450118,-400.0,0.00019998,2]
[360713354,1746947450127,-400.0,0.00019998,2]
[360713355,1746947450136,-400.0,0.00019998,2]
[360713356,1746947450145,-400.0,0.00019998,2]
[360713357,1746947450154,-400.0,0.00019998,2]